[Event "Live Chess"]
[Site "Chess.com"]
[Date "2023.05.21"]
[Round "-"]
[White "LutherSullivan"]
[Black "ClassyChameleon"]
[Result "1-0"]
[WhiteElo "2111"]
[BlackElo "1084"]
[TimeControl "300"]
[EndTime "19:17:56 PDT"]
[Termination "LutherSullivan won by checkmate"]

1. e4 {[%clk 0:04:57.8]} 1... e5 {[%clk 0:04:59]} 2. Nf3 {[%clk 0:04:56.6]} 2...
Nc6 {[%clk 0:04:57.7]} 3. Bc4 {[%clk 0:04:56]} 3... Nf6 {[%clk 0:04:57]} 4. d3
{[%clk 0:04:54.5]} 4... h6 {[%clk 0:04:55.8]} 5. O-O {[%clk 0:04:53.8]} 5... Bd6
{[%clk 0:04:54.7]} 6. c3 {[%clk 0:04:51]} 6... O-O {[%clk 0:04:53.6]} 7. d4
{[%clk 0:04:49]} 7... exd4 {[%clk 0:04:52.1]} 8. cxd4 {[%clk 0:04:39.4]} 8...
Nxe4 {[%clk 0:04:50.1]} 9. d5 {[%clk 0:04:38.2]} 9... Ne5 {[%clk 0:04:46.7]} 10.
Nxe5 {[%clk 0:04:35.9]} 10... Bxe5 {[%clk 0:04:45.9]} 11. Re1 {[%clk 0:04:28]}
11... Qh4 {[%clk 0:04:40.5]} 12. g3 {[%clk 0:04:13.5]} 12... Bxg3 {[%clk
0:04:13.2]} 13. fxg3 {[%clk 0:03:37.9]} 13... Nxg3 {[%clk 0:04:04.8]} 14. Qd3
{[%clk 0:03:23.2]} 14... Nh5 {[%clk 0:03:49.5]} 15. Re4 {[%clk 0:03:13.5]} 15...
Qf6 {[%clk 0:03:27.5]} 16. d6 {[%clk 0:03:07.2]} 16... cxd6 {[%clk 0:03:10.5]}
17. Nc3 {[%clk 0:03:05]} 17... d5 {[%clk 0:02:54.7]} 18. Nxd5 {[%clk 0:03:02.8]}
18... Qd6 {[%clk 0:02:35.4]} 19. Ne7+ {[%clk 0:02:58.7]} 19... Qxe7 {[%clk
0:02:30.6]} 20. Rxe7 {[%clk 0:02:58.3]} 20... d5 {[%clk 0:02:29.9]} 21. Bxd5
{[%clk 0:02:55.5]} 21... Bg4 {[%clk 0:02:27.8]} 22. Bxh6 {[%clk 0:02:45.9]}
22... Rad8 {[%clk 0:02:22.6]} 23. Bxf7+ {[%clk 0:02:23.3]} 23... Kh8 {[%clk
0:02:19.1]} 24. Bxg7+ {[%clk 0:02:17.1]} 24... Nxg7 {[%clk 0:02:12.8]} 25. Qg6
{[%clk 0:02:06]} 25... Rd1+ {[%clk 0:01:59]} 26. Rxd1 {[%clk 0:02:03.2]} 26...
Bxd1 {[%clk 0:01:58.3]} 27. Qh6# {[%clk 0:01:58.7]} 1-0

[Event "Live Chess"]
[Site "Chess.com"]
[Date "2023.05.21"]
[Round "-"]
[White "Olisingapore"]
[Black "LiamBellwood"]
[Result "0-1"]
[WhiteElo "1791"]
[BlackElo "2032"]
[TimeControl "300"]
[EndTime "19:18:12 PDT"]
[Termination "LiamBellwood won by checkmate"]

1. d4 {[%clk 0:04:54.4]} 1... e6 {[%clk 0:04:59.9]} 2. c4 {[%clk 0:04:54]} 2...
f5 {[%clk 0:04:59.4]} 3. g3 {[%clk 0:04:52.4]} 3... Nf6 {[%clk 0:04:59]} 4. Bg2
{[%clk 0:04:52.1]} 4... Be7 {[%clk 0:04:58]} 5. Nc3 {[%clk 0:04:51.6]} 5... O-O
{[%clk 0:04:57.6]} 6. Nf3 {[%clk 0:04:51.1]} 6... d6 {[%clk 0:04:52.1]} 7. O-O
{[%clk 0:04:50.7]} 7... a5 {[%clk 0:04:51.5]} 8. a4 {[%clk 0:04:47.6]} 8... Nc6
{[%clk 0:04:45.3]} 9. Qc2 {[%clk 0:04:43.8]} 9... e5 {[%clk 0:04:40.2]} 10. dxe5
{[%clk 0:04:42.5]} 10... dxe5 {[%clk 0:04:37.1]} 11. Rd1 {[%clk 0:04:30.7]}
11... Qe8 {[%clk 0:04:36]} 12. Nd5 {[%clk 0:04:27.5]} 12... Bd8 {[%clk
0:04:33.8]} 13. Qc3 {[%clk 0:04:19.8]} 13... Ne4 {[%clk 0:04:13.8]} 14. Qc2
{[%clk 0:04:18.7]} 14... Nf6 {[%clk 0:04:09.5]} 15. Be3 {[%clk 0:04:11.7]} 15...
Qh5 {[%clk 0:03:58.2]} 16. Bc5 {[%clk 0:04:07.9]} 16... Re8 {[%clk 0:03:51.7]}
17. Nxf6+ {[%clk 0:04:07.1]} 17... Bxf6 {[%clk 0:03:44.5]} 18. Be3 {[%clk
0:04:04.9]} 18... Be6 {[%clk 0:03:19.9]} 19. Rac1 {[%clk 0:03:58.8]} 19... Rad8
{[%clk 0:03:16]} 20. Rxd8 {[%clk 0:03:56.5]} 20... Rxd8 {[%clk 0:03:14.7]} 21.
Ne1 {[%clk 0:03:47.2]} 21... Nb4 {[%clk 0:03:06.8]} 22. Qc3 {[%clk 0:03:41.1]}
22... e4 {[%clk 0:02:58.7]} 23. Qb3 {[%clk 0:03:37.6]} 23... Qxe2 {[%clk
0:02:52.9]} 24. Nc2 {[%clk 0:03:33.8]} 24... Bxc4 {[%clk 0:02:38.8]} 25. Nd4
{[%clk 0:03:20]} 25... Bxb3 {[%clk 0:02:03.2]} 26. Nxe2 {[%clk 0:03:16.8]} 26...
Rd1+ {[%clk 0:02:02.7]} 27. Rxd1 {[%clk 0:03:15.4]} 27... Bxd1 {[%clk
0:02:02.6]} 28. Nc3 {[%clk 0:03:02.9]} 28... Bb3 {[%clk 0:01:54]} 29. f3 {[%clk
0:02:56.6]} 29... Bxc3 {[%clk 0:01:46.4]} 30. bxc3 {[%clk 0:02:53.5]} 30... Nc2
{[%clk 0:01:46.3]} 31. Bc5 {[%clk 0:02:43.6]} 31... e3 {[%clk 0:01:44]} 32. Kf1
{[%clk 0:02:38.9]} 32... Bc4+ {[%clk 0:01:43.2]} 33. Kg1 {[%clk 0:02:37]} 33...
e2 {[%clk 0:01:42.8]} 34. f4 {[%clk 0:02:32.6]} 34... e1=Q+ {[%clk 0:01:41.8]}
35. Bf1 {[%clk 0:02:32.2]} 35... Qxf1# {[%clk 0:01:40.9]} 0-1

[Event "Live Chess"]
[Site "Chess.com"]
[Date "2023.05.21"]
[Round "-"]
[White "GEMdzq"]
[Black "alanmike75"]
[Result "1-0"]
[WhiteElo "2291"]
[BlackElo "1591"]
[TimeControl "300"]
[EndTime "19:18:22 PDT"]
[Termination "GEMdzq won by resignation"]

1. e4 {[%clk 0:04:58.8]} 1... e5 {[%clk 0:04:58.8]} 2. d4 {[%clk 0:04:56.3]}
2... exd4 {[%clk 0:04:57.1]} 3. c3 {[%clk 0:04:54.8]} 3... dxc3 {[%clk
0:04:55.8]} 4. Bc4 {[%clk 0:04:54.4]} 4... Nf6 {[%clk 0:04:45.4]} 5. Nf3 {[%clk
0:04:47.7]} 5... d5 {[%clk 0:04:44]} 6. exd5 {[%clk 0:04:30.9]} 6... Bd6 {[%clk
0:04:42.3]} 7. Nxc3 {[%clk 0:04:28.3]} 7... O-O {[%clk 0:04:40.8]} 8. O-O {[%clk
0:04:25.3]} 8... Bg4 {[%clk 0:04:35]} 9. h3 {[%clk 0:04:20.7]} 9... Bh5 {[%clk
0:04:33.7]} 10. Bg5 {[%clk 0:04:11.7]} 10... Nbd7 {[%clk 0:04:31.8]} 11. Be2
{[%clk 0:04:01.2]} 11... Bg6 {[%clk 0:04:29.8]} 12. Re1 {[%clk 0:03:50]} 12...
Nb6 {[%clk 0:04:23.3]} 13. Qd4 {[%clk 0:03:43.9]} 13... h6 {[%clk 0:04:10]} 14.
Bh4 {[%clk 0:03:35.9]} 14... Re8 {[%clk 0:03:56.6]} 15. Bb5 {[%clk 0:03:32.7]}
15... Rxe1+ {[%clk 0:03:52.6]} 16. Rxe1 {[%clk 0:03:32.6]} 16... Nbd7 {[%clk
0:03:28.7]} 17. Bxd7 {[%clk 0:03:24.7]} 17... Qxd7 {[%clk 0:03:22.6]} 18. Bxf6
{[%clk 0:03:23.7]} 18... gxf6 {[%clk 0:03:19.5]} 19. Qxf6 {[%clk 0:03:23.6]}
19... Qf5 {[%clk 0:03:00.9]} 20. Qxf5 {[%clk 0:03:16.1]} 20... Bxf5 {[%clk
0:02:59.5]} 21. g4 {[%clk 0:03:11.9]} 21... Bg6 {[%clk 0:02:43.7]} 22. Nd4
{[%clk 0:03:09.3]} 22... a6 {[%clk 0:02:40.4]} 23. Kg2 {[%clk 0:03:07.6]} 23...
Kg7 {[%clk 0:02:37.5]} 24. Kf3 {[%clk 0:03:02.3]} 24... Rd8 {[%clk 0:02:21.9]}
25. Nf5+ {[%clk 0:02:56.5]} 25... Bxf5 {[%clk 0:02:01]} 26. gxf5 {[%clk
0:02:56.4]} 26... Kf6 {[%clk 0:01:56]} 27. Rg1 {[%clk 0:02:43.2]} 27... Ke5
{[%clk 0:01:50.4]} 28. Rg7 {[%clk 0:02:34.2]} 28... Kf6 {[%clk 0:01:45.4]} 29.
Rh7 {[%clk 0:02:28.8]} 29... Kxf5 {[%clk 0:01:36.4]} 30. Rxh6 {[%clk 0:02:22.9]}
30... Be5 {[%clk 0:01:25.6]} 31. Rh5+ {[%clk 0:02:19.3]} 1-0

[Event "Live Chess"]
[Site "Chess.com"]
[Date "2023.05.21"]
[Round "-"]
[White "worldchessleaguelive"]
[Black "therealab0ne"]
[Result "1-0"]
[WhiteElo "1355"]
[BlackElo "724"]
[TimeControl "300"]
[EndTime "19:18:24 PDT"]
[Termination "worldchessleaguelive won by checkmate"]

1. d4 {[%clk 0:04:56.6]} 1... d5 {[%clk 0:04:58.3]} 2. Bf4 {[%clk 0:04:54.9]}
2... Nf6 {[%clk 0:04:55.6]} 3. Nf3 {[%clk 0:04:53.8]} 3... e6 {[%clk 0:04:54]}
4. e3 {[%clk 0:04:51.6]} 4... Bd6 {[%clk 0:04:52.9]} 5. Nbd2 {[%clk 0:04:48]}
5... O-O {[%clk 0:04:50.1]} 6. g3 {[%clk 0:04:43.8]} 6... Bxf4 {[%clk
0:04:42.1]} 7. exf4 {[%clk 0:04:42.4]} 7... Qd6 {[%clk 0:04:39.3]} 8. Bg2 {[%clk
0:04:39.8]} 8... c5 {[%clk 0:04:37.1]} 9. c3 {[%clk 0:04:38.3]} 9... Nc6 {[%clk
0:03:59.4]} 10. Nb3 {[%clk 0:04:33.2]} 10... cxd4 {[%clk 0:03:54.2]} 11. Nbxd4
{[%clk 0:04:31.1]} 11... Nxd4 {[%clk 0:03:51.8]} 12. Qxd4 {[%clk 0:04:27.1]}
12... Re8 {[%clk 0:03:35.8]} 13. Ne5 {[%clk 0:04:22.6]} 13... Bd7 {[%clk
0:03:14.8]} 14. Nxd7 {[%clk 0:04:19]} 14... Qxd7 {[%clk 0:03:13.9]} 15. O-O
{[%clk 0:04:14.9]} 15... Qc7 {[%clk 0:02:31.9]} 16. Rac1 {[%clk 0:04:08.8]}
16... e5 {[%clk 0:02:28.1]} 17. fxe5 {[%clk 0:04:05.2]} 17... Qxe5 {[%clk
0:02:21.7]} 18. Qxe5 {[%clk 0:03:53.5]} 18... Rxe5 {[%clk 0:02:20.4]} 19. f4
{[%clk 0:03:52.6]} 19... Re2 {[%clk 0:02:16.6]} 20. Rf2 {[%clk 0:03:13.2]} 20...
Rae8 {[%clk 0:02:11.2]} 21. Rc2 {[%clk 0:03:04.1]} 21... Re1+ {[%clk 0:01:58.2]}
22. Rf1 {[%clk 0:02:56]} 22... Ng4 {[%clk 0:01:40.6]} 23. Rxe1 {[%clk
0:02:42.1]} 23... Rxe1+ {[%clk 0:01:38.6]} 24. Bf1 {[%clk 0:02:38.1]} 24... Ne3
{[%clk 0:01:28.4]} 25. Rf2 {[%clk 0:02:35.4]} 25... Rb1 {[%clk 0:00:48.8]} 26.
Rf3 {[%clk 0:02:29.3]} 26... Nxf1 {[%clk 0:00:46]} 27. Rxf1 {[%clk 0:02:26.8]}
27... Rxb2 {[%clk 0:00:45]} 28. Rd1 {[%clk 0:02:23.1]} 28... Rxa2 {[%clk
0:00:38]} 29. Rxd5 {[%clk 0:02:21.3]} 29... Kf8 {[%clk 0:00:36.5]} 30. Rd8+
{[%clk 0:02:19.2]} 30... Ke7 {[%clk 0:00:34.6]} 31. Rb8 {[%clk 0:02:15.2]} 31...
b6 {[%clk 0:00:28.2]} 32. Rb7+ {[%clk 0:02:11.8]} 32... Kd6 {[%clk 0:00:25.1]}
33. Rxf7 {[%clk 0:02:09.7]} 33... a5 {[%clk 0:00:21.3]} 34. Rxg7 {[%clk
0:02:07.9]} 34... b5 {[%clk 0:00:20.4]} 35. Rxh7 {[%clk 0:02:06.8]} 35... b4
{[%clk 0:00:19.8]} 36. cxb4 {[%clk 0:02:04.9]} 36... axb4 {[%clk 0:00:19.2]} 37.
Rb7 {[%clk 0:01:59.1]} 37... Kc5 {[%clk 0:00:17]} 38. f5 {[%clk 0:01:53.7]}
38... Kc4 {[%clk 0:00:14.8]} 39. f6 {[%clk 0:01:52.3]} 39... Kc3 {[%clk
0:00:13.2]} 40. f7 {[%clk 0:01:48.1]} 40... b3 {[%clk 0:00:12.6]} 41. f8=Q
{[%clk 0:01:41.3]} 41... b2 {[%clk 0:00:10.4]} 42. Qc5+ {[%clk 0:01:36.1]} 42...
Kd2 {[%clk 0:00:06.7]} 43. Rd7+ {[%clk 0:01:34.4]} 43... Ke2 {[%clk 0:00:04.1]}
44. Qe5+ {[%clk 0:01:31]} 44... Kf3 {[%clk 0:00:02.5]} 45. Rf7+ {[%clk 0:01:28]}
45... Kg4 {[%clk 0:00:01.3]} 46. Qf5# {[%clk 0:01:26.1]} 1-0

[Event "Live Chess"]
[Site "Chess.com"]
[Date "2023.05.21"]
[Round "-"]
[White "xx_blindpuffin_xx"]
[Black "Singapourfeuj"]
[Result "1-0"]
[WhiteElo "2178"]
[BlackElo "2143"]
[TimeControl "300"]
[EndTime "19:18:28 PDT"]
[Termination "xx_blindpuffin_xx won by resignation"]

1. d4 {[%clk 0:04:57.6]} 1... Nf6 {[%clk 0:04:58.9]} 2. Bf4 {[%clk 0:04:57]}
2... c5 {[%clk 0:04:57.6]} 3. e3 {[%clk 0:04:56.2]} 3... d5 {[%clk 0:04:56.5]}
4. c3 {[%clk 0:04:55.1]} 4... Nc6 {[%clk 0:04:55.8]} 5. Nd2 {[%clk 0:04:53.9]}
5... Qb6 {[%clk 0:04:55]} 6. Qb3 {[%clk 0:04:48.1]} 6... cxd4 {[%clk 0:04:53.1]}
7. exd4 {[%clk 0:04:43.8]} 7... Bf5 {[%clk 0:04:51]} 8. Ngf3 {[%clk 0:04:39.3]}
8... e6 {[%clk 0:04:49.8]} 9. Be2 {[%clk 0:04:31.1]} 9... Be7 {[%clk 0:04:48.6]}
10. O-O {[%clk 0:04:29.1]} 10... O-O {[%clk 0:04:47.4]} 11. h3 {[%clk
0:04:26.5]} 11... Qxb3 {[%clk 0:04:46.1]} 12. axb3 {[%clk 0:04:22.8]} 12... a6
{[%clk 0:04:45.3]} 13. b4 {[%clk 0:04:15.7]} 13... Ne4 {[%clk 0:04:44.2]} 14.
Nb3 {[%clk 0:04:14.1]} 14... f6 {[%clk 0:04:38.8]} 15. Nc5 {[%clk 0:04:01.8]}
15... Bxc5 {[%clk 0:04:35.8]} 16. bxc5 {[%clk 0:03:59.1]} 16... Rfe8 {[%clk
0:04:34.1]} 17. Bc7 {[%clk 0:03:48.1]} 17... e5 {[%clk 0:04:31.6]} 18. Rfd1
{[%clk 0:03:38.7]} 18... exd4 {[%clk 0:04:30.3]} 19. Nxd4 {[%clk 0:03:28.4]}
19... Nxd4 {[%clk 0:04:29.3]} 20. cxd4 {[%clk 0:03:07.1]} 20... Nxc5 {[%clk
0:04:28.1]} 21. dxc5 {[%clk 0:03:02.5]} 21... Rxe2 {[%clk 0:04:25.3]} 22. Rxd5
{[%clk 0:03:01.7]} 22... Be6 {[%clk 0:04:22.9]} 23. Rd6 {[%clk 0:02:58.4]} 23...
Kf7 {[%clk 0:04:21.4]} 24. Rad1 {[%clk 0:02:54]} 24... Rc8 {[%clk 0:04:17.3]}
25. Ba5 {[%clk 0:02:44.6]} 25... Rxb2 {[%clk 0:04:15.9]} 26. Bb6 {[%clk
0:02:39.2]} 26... a5 {[%clk 0:04:12.2]} 27. Re1 {[%clk 0:02:30.9]} 27... Re8
{[%clk 0:04:06.9]} 28. Rd4 {[%clk 0:02:28.1]} 28... Ra2 {[%clk 0:03:59.6]} 29.
Rb1 {[%clk 0:02:17.9]} 29... a4 {[%clk 0:03:57.3]} 30. Ba5 {[%clk 0:02:10.2]}
30... Bc8 {[%clk 0:03:55]} 31. Rbb4 {[%clk 0:01:57.8]} 31... a3 {[%clk
0:03:51.5]} 32. Ra4 {[%clk 0:01:55.1]} 32... Re5 {[%clk 0:03:40.8]} 33. Bb4
{[%clk 0:01:50.6]} 33... Ra1+ {[%clk 0:03:34.9]} 34. Kh2 {[%clk 0:01:47.9]}
34... a2 {[%clk 0:03:34]} 35. Rd2 {[%clk 0:01:38.1]} 35... Be6 {[%clk
0:03:32.4]} 36. Bc3 {[%clk 0:01:36.1]} 36... Rc1 {[%clk 0:03:26.9]} 37. Bxe5
{[%clk 0:01:31.3]} 37... fxe5 {[%clk 0:03:25.8]} 38. Rdxa2 {[%clk 0:01:25.9]}
38... Bxa2 {[%clk 0:03:24.1]} 39. Rxa2 {[%clk 0:01:25.8]} 39... Rxc5 {[%clk
0:03:22.9]} 40. Rb2 {[%clk 0:01:24.6]} 40... b5 {[%clk 0:03:21.9]} 41. Kg3
{[%clk 0:01:23.4]} 41... Ke6 {[%clk 0:03:20.6]} 42. Kf3 {[%clk 0:01:22.3]} 42...
h5 {[%clk 0:03:18.3]} 43. Ra2 {[%clk 0:01:19.8]} 43... g5 {[%clk 0:03:14.5]} 44.
Ke4 {[%clk 0:01:15.8]} 44... Rc4+ {[%clk 0:03:13.6]} 45. Kd3 {[%clk 0:01:14.1]}
45... b4 {[%clk 0:03:12.7]} 46. Kxc4 {[%clk 0:01:11.5]} 1-0

[Event "Live Chess"]
[Site "Chess.com"]
[Date "2023.05.21"]
[Round "-"]
[White "LutherSullivan"]
[Black "ramses-IIG"]
[Result "1-0"]
[WhiteElo "2111"]
[BlackElo "862"]
[TimeControl "300"]
[EndTime "19:18:56 PDT"]
[Termination "LutherSullivan won by resignation"]

1. e4 {[%clk 0:04:58.2]} 1... d5 {[%clk 0:04:59.9]} 2. exd5 {[%clk 0:04:56.6]}
2... Qxd5 {[%clk 0:04:59.8]} 3. Nc3 {[%clk 0:04:55.9]} 3... Qe6+ {[%clk
0:04:59.7]} 4. Be2 {[%clk 0:04:53.7]} 4... Qg6 {[%clk 0:04:59.6]} 5. Bf3 {[%clk
0:04:50.4]} 5... c6 {[%clk 0:04:57.9]} 6. Nge2 {[%clk 0:04:47.7]} 6... e5 {[%clk
0:04:57.1]} 7. d4 {[%clk 0:04:46.1]} 7... f6 {[%clk 0:04:56.1]} 8. Ng3 {[%clk
0:04:32.3]} 8... Bb4 {[%clk 0:04:53.1]} 9. Bh5 {[%clk 0:04:29.7]} 9... Bxc3+
{[%clk 0:04:44.7]} 10. bxc3 {[%clk 0:04:28.3]} 10... Qxh5 {[%clk 0:04:44.3]} 11.
Qxh5+ {[%clk 0:04:26.6]} 1-0

[Event "Live Chess"]
[Site "Chess.com"]
[Date "2023.05.21"]
[Round "-"]
[White "KeithArkell"]
[Black "Pablo_dmp"]
[Result "1-0"]
[WhiteElo "2573"]
[BlackElo "1861"]
[TimeControl "300"]
[EndTime "19:19:23 PDT"]
[Termination "KeithArkell won by resignation"]

1. Nf3 {[%clk 0:04:54.5]} 1... Nf6 {[%clk 0:04:56]} 2. c4 {[%clk 0:04:53.2]}
2... c5 {[%clk 0:04:53.3]} 3. Nc3 {[%clk 0:04:52.1]} 3... Nc6 {[%clk 0:04:49]}
4. g3 {[%clk 0:04:51.4]} 4... g6 {[%clk 0:04:47.5]} 5. Bg2 {[%clk 0:04:50.7]}
5... Bg7 {[%clk 0:04:46.3]} 6. O-O {[%clk 0:04:50]} 6... O-O {[%clk 0:04:45]} 7.
a3 {[%clk 0:04:49.4]} 7... a6 {[%clk 0:04:28.7]} 8. b4 {[%clk 0:04:46.4]} 8...
cxb4 {[%clk 0:04:25.1]} 9. axb4 {[%clk 0:04:45.6]} 9... Nxb4 {[%clk 0:04:21.4]}
10. d4 {[%clk 0:04:44.4]} 10... d5 {[%clk 0:04:15.7]} 11. Ba3 {[%clk 0:04:42.2]}
11... Nc6 {[%clk 0:03:57.1]} 12. cxd5 {[%clk 0:04:32.8]} 12... Nxd5 {[%clk
0:03:55.7]} 13. Nxd5 {[%clk 0:04:32]} 13... Qxd5 {[%clk 0:03:54.3]} 14. Ne5
{[%clk 0:04:31.2]} 14... Qe6 {[%clk 0:03:45.9]} 15. Nxc6 {[%clk 0:04:27]} 15...
bxc6 {[%clk 0:03:45.8]} 16. e3 {[%clk 0:04:25]} 16... Bd7 {[%clk 0:03:33.7]} 17.
Qc2 {[%clk 0:04:24]} 17... Rac8 {[%clk 0:03:23.4]} 18. Rfc1 {[%clk 0:04:22.3]}
18... c5 {[%clk 0:03:20.4]} 19. Bxc5 {[%clk 0:04:20.5]} 19... Bb5 {[%clk
0:03:16.7]} 20. Qa2 {[%clk 0:04:17.3]} 20... Qxa2 {[%clk 0:03:06.4]} 21. Rxa2
{[%clk 0:04:16.1]} 21... Rfe8 {[%clk 0:03:02.9]} 22. Rca1 {[%clk 0:04:14.5]}
22... e5 {[%clk 0:03:00.4]} 23. Bh3 {[%clk 0:04:05.5]} 23... Rc7 {[%clk
0:02:56.6]} 24. Bd6 {[%clk 0:04:02.7]} 24... Rc3 {[%clk 0:02:45.7]} 25. dxe5
{[%clk 0:04:00]} 25... Bxe5 {[%clk 0:02:43.2]} 26. Bxe5 {[%clk 0:03:59.3]} 26...
Rxe5 {[%clk 0:02:43]} 27. Bf1 {[%clk 0:03:57.9]} 27... Rec5 {[%clk 0:02:26.1]}
28. Bxb5 {[%clk 0:03:40.2]} 28... axb5 {[%clk 0:02:26]} 29. Ra8+ {[%clk
0:03:37.3]} 29... Kg7 {[%clk 0:02:24.2]} 30. Kg2 {[%clk 0:03:34.1]} 30... b4
{[%clk 0:02:22.6]} 31. Rb8 {[%clk 0:03:33.3]} 31... b3 {[%clk 0:02:21.2]} 32.
Ra7 {[%clk 0:03:32.2]} 32... Rf5 {[%clk 0:02:09.1]} 33. g4 {[%clk 0:03:20.1]}
33... Rf6 {[%clk 0:02:05.6]} 34. Kg3 {[%clk 0:02:49.2]} 34... Rc2 {[%clk
0:01:56.4]} 35. f3 {[%clk 0:02:45.5]} 35... Rc3 {[%clk 0:01:52.6]} 36. Re7
{[%clk 0:02:36.1]} 36... Re6 {[%clk 0:01:42.9]} 37. Rxe6 {[%clk 0:02:32.5]}
37... fxe6 {[%clk 0:01:42.8]} 38. Kf4 {[%clk 0:02:30.5]} 38... e5+ {[%clk
0:01:38]} 39. Ke4 {[%clk 0:02:29.3]} 39... h5 {[%clk 0:01:25.4]} 40. g5 {[%clk
0:02:26.4]} 40... Kf7 {[%clk 0:01:23.5]} 41. Rb6 {[%clk 0:02:24.5]} 41... Rc2
{[%clk 0:01:12.3]} 42. Rxb3 {[%clk 0:02:21]} 42... Rxh2 {[%clk 0:01:10.5]} 43.
Rb7+ {[%clk 0:02:19.8]} 43... Ke6 {[%clk 0:01:08]} 44. Rb6+ {[%clk 0:02:19.1]}
44... Kf7 {[%clk 0:01:06.7]} 45. Kxe5 {[%clk 0:02:18.4]} 45... Rg2 {[%clk
0:01:02.4]} 46. Rb7+ {[%clk 0:02:17]} 46... Ke8 {[%clk 0:00:47]} 47. Kf6 {[%clk
0:02:15.9]} 47... Rg3 {[%clk 0:00:41.9]} 48. f4 {[%clk 0:02:13.9]} 48... Rxe3
{[%clk 0:00:36.4]} 49. Kxg6 {[%clk 0:02:12.9]} 49... h4 {[%clk 0:00:34.7]} 50.
Rh7 {[%clk 0:02:11.9]} 50... h3 {[%clk 0:00:32.8]} 51. f5 {[%clk 0:02:11.5]}
51... Rf3 {[%clk 0:00:25.8]} 52. f6 {[%clk 0:02:10.7]} 52... Kd8 {[%clk
0:00:13.8]} 53. Rh8+ {[%clk 0:02:08.3]} 53... Kd7 {[%clk 0:00:12.2]} 54. f7
{[%clk 0:02:07.6]} 54... Ke7 {[%clk 0:00:11.3]} 55. Re8+ {[%clk 0:02:06.5]}
55... Kd7 {[%clk 0:00:10.1]} 56. f8=Q {[%clk 0:02:06]} 56... Rxf8 {[%clk
0:00:09.3]} 57. Rxf8 {[%clk 0:02:05.3]} 57... h2 {[%clk 0:00:08.6]} 58. Rf1
{[%clk 0:02:04.6]} 1-0

[Event "Live Chess"]
[Site "Chess.com"]
[Date "2023.05.21"]
[Round "-"]
[White "ViktorTheCoolBoy"]
[Black "1600x"]
[Result "1-0"]
[WhiteElo "2509"]
[BlackElo "1886"]
[TimeControl "300"]
[EndTime "19:19:26 PDT"]
[Termination "ViktorTheCoolBoy won by resignation"]

1. e4 {[%clk 0:04:58.3]} 1... e5 {[%clk 0:04:58.5]} 2. Nf3 {[%clk 0:04:57.2]}
2... d6 {[%clk 0:04:52.2]} 3. d4 {[%clk 0:04:52.7]} 3... Nd7 {[%clk 0:04:50.4]}
4. Nc3 {[%clk 0:04:50.7]} 4... h6 {[%clk 0:04:48.5]} 5. Rg1 {[%clk 0:04:43.1]}
5... c6 {[%clk 0:04:46.4]} 6. g4 {[%clk 0:04:41.4]} 6... exd4 {[%clk 0:04:44.7]}
7. Nxd4 {[%clk 0:04:39.8]} 7... Qh4 {[%clk 0:04:42]} 8. Nf3 {[%clk 0:04:36.8]}
8... Qd8 {[%clk 0:04:39.8]} 9. Bc4 {[%clk 0:04:32.4]} 9... b5 {[%clk 0:04:35.8]}
10. Bb3 {[%clk 0:04:31.2]} 10... a6 {[%clk 0:04:28.9]} 11. g5 {[%clk 0:04:29.4]}
11... g6 {[%clk 0:04:18.5]} 12. Bf4 {[%clk 0:04:19.2]} 12... d5 {[%clk
0:04:10.2]} 13. exd5 {[%clk 0:04:17.7]} 13... Nc5 {[%clk 0:03:20.7]} 14. Qe2+
{[%clk 0:04:14.6]} 14... Qe7 {[%clk 0:03:18.4]} 15. Qxe7+ {[%clk 0:04:07.8]}
15... Kxe7 {[%clk 0:03:10.1]} 16. O-O-O {[%clk 0:04:03.9]} 16... Kd7 {[%clk
0:03:08.5]} 17. dxc6+ {[%clk 0:04:02.4]} 17... Kxc6 {[%clk 0:03:06.2]} 18. Bd5+
{[%clk 0:04:01.5]} 18... Kb6 {[%clk 0:03:04.8]} 19. Bxa8 {[%clk 0:04:00.4]}
19... Bb7 {[%clk 0:03:03.4]} 20. Bxb7 {[%clk 0:03:59.1]} 20... Nxb7 {[%clk
0:03:00.9]} 21. Be5 {[%clk 0:03:57.5]} 21... Rh7 {[%clk 0:02:58.5]} 22. Nd5+
{[%clk 0:03:56.4]} 22... Ka7 {[%clk 0:02:56.4]} 23. h4 {[%clk 0:03:54.6]} 23...
Nd6 {[%clk 0:02:55.2]} 24. Bxd6 {[%clk 0:03:53.1]} 24... Bxd6 {[%clk 0:02:53.2]}
25. gxh6 {[%clk 0:03:49.4]} 25... Bf8 {[%clk 0:02:51.6]} 26. Ng5 {[%clk
0:03:48.3]} 26... Bxh6 {[%clk 0:02:47.4]} 27. Kb1 {[%clk 0:03:45.1]} 27... Bxg5
{[%clk 0:02:43.7]} 28. hxg5 {[%clk 0:03:44.1]} 28... Rg7 {[%clk 0:02:41.2]} 29.
Rh1 {[%clk 0:03:43.3]} 29... Ka8 {[%clk 0:02:39.3]} 30. Rh8 {[%clk 0:03:42]}
30... Kb7 {[%clk 0:02:36.3]} 31. Nf6 {[%clk 0:03:40.7]} 31... a5 {[%clk
0:02:34]} 32. Rxg8 {[%clk 0:03:39]} 32... Rxg8 {[%clk 0:02:31.7]} 33. Nxg8
{[%clk 0:03:38.9]} 33... a4 {[%clk 0:02:29.5]} 34. Nh6 {[%clk 0:03:38.4]} 34...
b4 {[%clk 0:02:28.1]} 35. Nxf7 {[%clk 0:03:37.8]} 35... Kb6 {[%clk 0:02:26.2]}
36. Ne5 {[%clk 0:03:37.2]} 36... Kb5 {[%clk 0:02:25.1]} 37. Nxg6 {[%clk
0:03:37.1]} 37... Kb6 {[%clk 0:02:23.8]} 38. f4 {[%clk 0:03:36.5]} 38... Ka6
{[%clk 0:02:22.6]} 39. f5 {[%clk 0:03:36.4]} 39... Kb5 {[%clk 0:02:21.4]} 40. f6
{[%clk 0:03:36.3]} 40... Kc6 {[%clk 0:02:20.2]} 41. f7 {[%clk 0:03:36.2]} 41...
b3 {[%clk 0:02:17.9]} 42. f8=Q {[%clk 0:03:35.1]} 42... Kc7 {[%clk 0:02:14.4]}
43. Qc5+ {[%clk 0:03:31.9]} 43... Kb7 {[%clk 0:02:11.8]} 44. Rd7+ {[%clk
0:03:30.5]} 1-0